fUSD/lending_fUSD_20240718
["ID","MTS","AMOUNT","RATE_DAILY","PERIOD"]
[332496598,1721274668835,-634.09,0.00021917,2]
[332496599,1721274668845,-545.62,0.00021917,2]
[332496600,1721274668854,-1097.42,0.00021917,2]
[332496601,1721274668864,-500.0,0.00021917,2]
[332496602,1721274668874,-500.0,0.00021917,2]
[332496603,1721274668883,-506.55924937,0.00021917,2]
[332496604,1721274668892,-500.0,0.00021917,2]
[332496605,1721274668902,-500.0,0.00021917,2]
[332496606,1721274668911,-500.0,0.00021917,2]
[332496607,1721274668920,-510.68606031,0.00021917,2]
[332496608,1721274668929,-500.0,0.00021917,2]
[332496609,1721274668938,-500.0,0.00021917,2]
[332496610,1721274668947,-191.30125343,0.00021917,2]
[332496611,1721274668956,-500.0,0.00021917,2]
[332496612,1721274668965,-504.83473256,0.00021917,2]
[332496613,1721274668974,-500.0,0.00021917,2]
[332496614,1721274668983,-510.42747709,0.00021917,2]
[332496615,1721274668992,-500.0,0.00021917,2]
[332496616,1721274669001,-879.85,0.00021917,2]
[332496617,1721274669012,-500.0,0.00021917,2]
[332496618,1721274669021,-500.0,0.00021917,2]
[332496619,1721274669030,-1456.1,0.00021917,2]
[332496620,1721274669039,-500.0,0.00021917,2]
[332496621,1721274669048,-532.83781041,0.00021917,2]
[332496622,1721274669057,-500.0,0.00021917,2]
[332496623,1721274669066,-500.0,0.00021917,2]
[332496624,1721274669075,-504.75991555,0.00021917,2]
[332496625,1721274669084,-500.0,0.00021917,2]
[332496626,1721274669093,-491.31132347,0.00021917,2]
[332496627,1721274669102,-565.07,0.00021917,2]
[332496628,1721274669111,-503.19294503,0.00021917,2]
[332496629,1721274669121,-500.0,0.00021917,2]
[332496630,1721274669144,-500.0,0.00021917,2]
[332496631,1721274669161,-520.61883842,0.00021917,2]
[332496632,1721274669179,-305.40077478,0.00021917,2]
[332496633,1721274669201,-500.0,0.00021917,2]
[332496634,1721274669221,-500.0,0.00021917,2]
[332496635,1721274669239,-501.71752965,0.00021917,2]
[332496636,1721274669257,-630.86389707,0.00021917,2]
[332496637,1721274669273,-895.32,0.00021917,2]
[332496638,1721274669295,-500.0,0.00021917,2]
[332496639,1721274669312,-305.30749038,0.00021917,2]
[332496640,1721274669326,-20000.0,0.00021917,2]
[332496641,1721274669344,-1633.46,0.00021917,2]
[332496642,1721274669362,-1137.65,0.00021917,2]
[332496643,1721274669378,-618.76371752,0.00021917,2]
[332496644,1721274669392,-500.0,0.00021917,2]
[332496645,1721274669407,-500.0,0.00021917,2]
[332496646,1721274669422,-502.84220164,0.00021917,2]
[332496647,1721274669437,-612.68,0.00021917,2]
[332496648,1721274669452,-200.44171675,0.00021917,2]
[332496649,1721274669468,-500.0,0.00021917,2]
[332496650,1721274669482,-500.0,0.00021917,2]
[332496651,1721274669495,-305.40080503,0.00021917,2]
[332496652,1721274669512,-500.0,0.00021917,2]
[332496653,1721274669529,-856.32,0.00021917,2]
[332496654,1721274669545,-500.0,0.00021917,2]
[332496655,1721274669561,-500.0,0.00021917,2]
[332496656,1721274669575,-500.0,0.00021917,2]
[332496657,1721274669590,-500.0,0.00021917,2]
[332496658,1721274669604,-572.77,0.00021917,2]
[332496659,1721274669619,-503.814386,0.00021917,2]
[332496660,1721274669634,-500.0,0.00021917,2]
[332496661,1721274669650,-500.0,0.00021917,2]
[332496662,1721274669665,-500.0,0.00021917,2]
[332496663,1721274669680,-1971.42,0.00021917,2]
[332496664,1721274669695,-504.09939853,0.00021917,2]
[332496665,1721274669710,-500.0,0.00021917,2]
[332496666,1721274669724,-504.64704736,0.00021917,2]
[332496667,1721274669741,-596.9,0.00021917,2]
[332496668,1721274669755,-200.44423318,0.00021917,2]
[332496669,1721274669770,-747.73,0.00021917,2]
[332496670,1721274669786,-505.43930369,0.00021917,2]
[332496671,1721274669804,-1022.86,0.00021917,2]
[332496672,1721274669818,-502.84864788,0.00021917,2]
[332496673,1721274669833,-488.69781934,0.00021917,2]
[332496674,1721274669848,-1120.58,0.00021917,2]
[332496675,1721274669863,-500.0,0.00021917,2]
[332496676,1721274669878,-500.0,0.00021917,2]
[332496677,1721274669895,-500.0,0.00021917,2]
[332496678,1721274669910,-500.0,0.00021917,2]
[332496679,1721274669925,-500.0,0.00021917,2]
[332496680,1721274669942,-500.0,0.00021917,2]
[332496681,1721274669956,-500.0,0.00021917,2]
[332496682,1721274669971,-584.11,0.00021917,2]
[332496683,1721274669986,-503.71718639,0.00021917,2]
[332496684,1721274670001,-500.0,0.00021917,2]
[332496685,1721274670016,-532.95,0.00021917,2]
[332496686,1721274670030,-500.0,0.00021917,2]
[332496687,1721274670045,-500.0,0.00021917,2]
[332496688,1721274670059,-500.0,0.00021917,2]
[332496689,1721274670074,-500.0,0.00021917,2]
[332496690,1721274670091,-505.94850942,0.00021917,2]
[332496691,1721274670105,-500.0,0.00021917,2]
[332496692,1721274670120,-500.0,0.00021917,2]
[332496693,1721274670138,-500.0,0.00021917,2]
[332496694,1721274670152,-1598.57,0.00021917,2]
[332496695,1721274670169,-500.0,0.00021917,2]
[332496696,1721274670184,-1266.24,0.00021917,2]
[332496697,1721274670198,-747.48,0.00021917,2]
[332496698,1721274670213,-500.0,0.00021917,2]
[332496699,1721274670228,-500.0,0.00021917,2]
[332496700,1721274670242,-500.0,0.00021917,2]
[332496701,1721274670257,-500.0,0.00021917,2]
[332496702,1721274670272,-500.0,0.00021917,2]
[332496703,1721274670287,-500.0,0.00021917,2]
[332496704,1721274670302,-500.0,0.00021917,2]
[332496705,1721274670317,-1713.2,0.00021917,2]
[332496706,1721274670331,-500.0,0.00021917,2]
[332496707,1721274670346,-500.0,0.00021917,2]
[332496708,1721274670361,-508.87087059,0.00021917,2]
[332496709,1721274670376,-209.03989823,0.00021917,2]
[332496710,1721274670395,-500.0,0.00021917,2]
[332496711,1721274670411,-500.0,0.00021917,2]
[332496712,1721274670426,-549.66075595,0.00021917,2]
[332496713,1721274670441,-840.62,0.00021917,2]
[332496714,1721274670456,-1030.68,0.00021917,2]
[332496715,1721274670471,-510.95958896,0.00021917,2]
[332496716,1721274670486,-500.0,0.00021917,2]
[332496717,1721274670499,-505.64455022,0.00021917,2]
[332496718,1721274670514,-500.0,0.00021917,2]
[332496719,1721274670529,-500.0,0.00021917,2]
[332496720,1721274670544,-500.0,0.00021917,2]
[332496721,1721274670559,-503.77093802,0.00021917,2]
[332496722,1721274670575,-500.0,0.00021917,2]
[332496723,1721274670589,-1680.96,0.00021917,2]
[332496724,1721274670605,-500.0,0.00021917,2]
[332496725,1721274670620,-500.0,0.00021917,2]
[332496726,1721274670636,-500.0,0.00021917,2]
[332496727,1721274670653,-500.0,0.00021917,2]
[332496728,1721274670668,-500.0,0.00021917,2]
[332496729,1721274670683,-571.43,0.00021917,2]
[332496730,1721274670700,-500.0,0.00021917,2]
[332496731,1721274670712,-502.52651857,0.00021917,2]
[332496732,1721274670723,-500.0,0.00021917,2]
[332496733,1721274670732,-1337.9,0.00021917,2]
[332496734,1721274670741,-510.95034874,0.00021917,2]
[332496735,1721274670751,-500.0,0.00021917,2]
[332496736,1721274670760,-876.11,0.00021917,2]
[332496737,1721274670770,-500.0,0.00021917,2]
[332496738,1721274670779,-568.11,0.00021917,2]
[332496739,1721274670790,-500.0,0.00021917,2]
[332496740,1721274670799,-816.31,0.00021917,2]
[332496741,1721274670809,-511.03912257,0.00021917,2]
[332496742,1721274670819,-500.0,0.00021917,2]
[332496743,1721274670828,-500.0,0.00021917,2]
[332496744,1721274670837,-509.1161635,0.00021917,2]
[332496745,1721274671188,-1431.81,0.00021917,2]
[332496746,1721274671211,-500.0,0.00021917,2]
[332496747,1721274671220,-798.36,0.00021917,2]
[332496748,1721274671229,-469.5799677,0.00021917,2]
[332496749,1721274671238,-500.0,0.00021917,2]
[332496750,1721274671247,-718.12,0.00021917,2]
[332496751,1721274671256,-531.26801824,0.00021917,2]
[332496752,1721274671265,-516.58470778,0.00021917,2]
[332496753,1721274671274,-500.0,0.00021917,2]
[332496754,1721274671283,-1226.23,0.00021917,2]
[332496755,1721274671292,-1202.48,0.00021917,2]
[332496756,1721274671302,-507.04792881,0.00021917,2]
[332496757,1721274671311,-195.78356967,0.00021917,2]
[332496758,1721274671321,-500.0,0.00021917,2]
[332496759,1721274671329,-500.0,0.00021917,2]
[332496760,1721274671339,-605.75,0.00021917,2]
[332496761,1721274671348,-500.0,0.00021917,2]
[332496762,1721274671357,-500.0,0.00021917,2]
[332496763,1721274671366,-500.0,0.00021917,2]
[332496764,1721274671376,-500.0,0.00021917,2]
[332496765,1721274671387,-1168.3,0.00021917,2]
[332496766,1721274671396,-868.0,0.00021917,2]
[332496767,1721274671405,-513.02131635,0.00021917,2]
[332496768,1721274671414,-500.0,0.00021917,2]
[332496769,1721274671424,-779.49,0.00021917,2]
[332496770,1721274671433,-500.0,0.00021917,2]
[332496771,1721274671442,-1124.79,0.00021917,2]
[332496772,1721274671452,-1662.06,0.00021917,2]
[332496773,1721274671461,-500.0,0.00021917,2]
[332496774,1721274671470,-500.0,0.00021917,2]
[332496775,1721274671479,-500.0,0.00021917,2]
[332496776,1721274671489,-500.0,0.00021917,2]
[332496777,1721274671498,-500.0,0.00021917,2]
[332496778,1721274671508,-501.77704639,0.00021917,2]
[332496779,1721274671517,-902.74,0.00021917,2]
[332496780,1721274671526,-1021.57,0.00021917,2]
[332496781,1721274671536,-863.66,0.00021917,2]
[332496782,1721274671545,-500.0,0.00021917,2]
[332496783,1721274671556,-500.0,0.00021917,2]
[332496784,1721274671565,-500.0,0.00021917,2]
[332496785,1721274671574,-500.0,0.00021917,2]
[332496786,1721274671584,-500.0,0.00021917,2]
[332496787,1721274671593,-765.13,0.00021917,2]
[332496788,1721274671602,-500.0,0.00021917,2]
[332496789,1721274671612,-500.0,0.00021917,2]
[332496790,1721274671621,-947.9,0.00021917,2]
[332496791,1721274671631,-500.0,0.00021917,2]
[332496792,1721274671642,-501.24702965,0.00021917,2]
[332496793,1721274671655,-1522.72,0.00021917,2]
[332496794,1721274671665,-751.78,0.00021917,2]
[332496795,1721274671674,-500.0,0.00021917,2]
[332496796,1721274671683,-500.0,0.00021917,2]
[332496797,1721274671694,-500.0,0.00021917,2]
[332496798,1721274671704,-707.22,0.00021917,2]
[332496799,1721274671714,-1064.25,0.00021917,2]
[332496800,1721274671727,-500.0,0.00021917,2]
[332496801,1721274671736,-789.58,0.00021917,2]
[332496802,1721274671746,-506.92957,0.00021917,2]
[332496803,1721274671755,-1037.22,0.00021917,2]
[332496804,1721274671764,-500.74902774,0.00021917,2]
[332496805,1721274671773,-2252.11,0.00021917,2]
[332496806,1721274671782,-500.0,0.00021917,2]
[332496807,1721274671792,-500.0,0.00021917,2]
[332496808,1721274671801,-505.30030877,0.00021917,2]
[332496809,1721274671811,-500.0,0.00021917,2]
[332496810,1721274671820,-500.0,0.00021917,2]
[332496811,1721274671829,-500.0,0.00021917,2]
[332496812,1721274671838,-500.0,0.00021917,2]
[332496813,1721274671848,-3677.35,0.00021917,2]
[332496814,1721274671857,-1777.03,0.00021917,2]
[332496815,1721274671866,-500.0,0.00021917,2]
[332496816,1721274671875,-500.0,0.00021917,2]
[332496817,1721274671886,-518.53790835,0.00021917,2]
[332496818,1721274671896,-500.0,0.00021917,2]
[332496819,1721274671906,-271.99163654,0.00021917,2]
[332496820,1721274671915,-517.15974179,0.00021917,2]
[332496821,1721274671924,-500.0,0.00021917,2]
[332496822,1721274671933,-500.0,0.00021917,2]
[332496823,1721274671943,-1044.91,0.00021917,2]
[332496824,1721274671952,-508.35265696,0.00021917,2]
[332496825,1721274671961,-500.0,0.00021917,2]
[332496826,1721274671970,-500.0,0.00021917,2]
[332496827,1721274671979,-500.0,0.00021917,2]
[332496828,1721274671988,-1112.71,0.00021917,2]
[332496829,1721274671997,-500.0,0.00021917,2]
[332496830,1721274672005,-512.12080569,0.00021917,2]
[332496831,1721274672014,-500.0,0.00021917,2]
[332496832,1721274672023,-500.0,0.00021917,2]
[332496833,1721274672032,-500.0,0.00021917,2]
[332496834,1721274672041,-626.2,0.00021917,2]
[332496835,1721274672050,-857.06,0.00021917,2]
[332496836,1721274672059,-500.0,0.00021917,2]
[332496837,1721274672068,-500.0,0.00021917,2]
[332496838,1721274672077,-891.38,0.00021917,2]
[332496839,1721274672086,-572.65,0.00021917,2]
[332496840,1721274672095,-505.83852363,0.00021917,2]
[332496841,1721274672104,-618.21926935,0.00021917,2]
[332496842,1721274672113,-549.66,0.00021917,2]
[332496843,1721274672122,-500.0,0.00021917,2]
[332496844,1721274672131,-1812.97,0.00021917,2]
[332496845,1721274672143,-500.0,0.00021917,2]
[332496846,1721274672152,-500.0,0.00021917,2]
[332496847,1721274672161,-505.24934637,0.00021917,2]
[332496848,1721274672170,-509.46567084,0.00021917,2]
[332496849,1721274672179,-500.0,0.00021917,2]
[332496850,1721274672189,-648.27,0.00021917,2]
[332496851,1721274672198,-501.1274255,0.00021917,2]
[332496852,1721274672208,-841.21,0.00021917,2]
[332496853,1721274672217,-500.0,0.00021917,2]
[332496854,1721274672226,-500.0,0.00021917,2]
[332496855,1721274672235,-500.0,0.00021917,2]
[332496856,1721274672244,-500.0,0.00021917,2]
[332496857,1721274672253,-500.0,0.00021917,2]
[332496858,1721274672262,-581.4,0.00021917,2]
[332496859,1721274672271,-500.0,0.00021917,2]
[332496860,1721274672280,-516.32459389,0.00021917,2]
[332496861,1721274672289,-756.63,0.00021917,2]
[332496862,1721274672299,-2220.46,0.00021917,2]
[332496863,1721274672308,-500.0,0.00021917,2]
[332496864,1721274672317,-500.0,0.00021917,2]
[332496865,1721274672326,-2023.05,0.00021917,2]
[332496866,1721274672336,-745.45,0.00021917,2]
[332496867,1721274672345,-500.0,0.00021917,2]
[332496868,1721274672354,-500.0,0.00021917,2]
[332496869,1721274672363,-934.7,0.00021917,2]
[332496870,1721274672372,-607.49,0.00021917,2]
[332496871,1721274672382,-1021.4,0.00021917,2]
[332496872,1721274672392,-919.66,0.00021917,2]
[332496873,1721274672401,-500.0,0.00021917,2]
[332496874,1721274672410,-1092.0,0.00021917,2]
[332496875,1721274672419,-421.79163179,0.00021917,2]
[332496876,1721274672428,-500.0,0.00021917,2]
[332496877,1721274672437,-507.94464168,0.00021917,2]
[332496878,1721274672447,-908.55,0.00021917,2]
[332496879,1721274672456,-500.0,0.00021917,2]
[332496880,1721274672468,-1105.06,0.00021917,2]
[332496881,1721274672477,-500.0,0.00021917,2]
[332496882,1721274672486,-504.2918997,0.00021917,2]
[332496883,1721274672496,-500.0,0.00021917,2]
[332496884,1721274672505,-500.0,0.00021917,2]
[332496885,1721274672514,-500.0,0.00021917,2]
[332496886,1721274672523,-500.0,0.00021917,2]
[332496887,1721274672533,-500.0,0.00021917,2]
[332496888,1721274672542,-500.0,0.00021917,2]
[332496889,1721274672554,-500.0,0.00021917,2]
[332496890,1721274672563,-508.58,0.00021917,2]
[332496891,1721274672573,-631.91,0.00021917,2]
[332496892,1721274672582,-552.32,0.00021917,2]
[332496893,1721274672591,-500.0,0.00021917,2]
[332496894,1721274672600,-1581.33,0.00021917,2]
[332496895,1721274672610,-500.0,0.00021917,2]
[332496896,1721274672619,-500.0,0.00021917,2]
[332496897,1721274672628,-502.10529075,0.00021917,2]
[332496898,1721274672639,-500.0,0.00021917,2]
[332496899,1721274672651,-709.67,0.00021917,2]
[332496900,1721274672661,-502.29350304,0.00021917,2]
[332496901,1721274672671,-1266.8,0.00021917,2]
[332496902,1721274672680,-500.0,0.00021917,2]
[332496903,1721274672692,-880.16,0.00021917,2]
[332496904,1721274672702,-1098.97,0.00021917,2]
[332496905,1721274672711,-500.0,0.00021917,2]
[332496906,1721274672721,-516.66182109,0.00021917,2]
[332496907,1721274672732,-500.0,0.00021917,2]
[332496908,1721274672741,-1402.13,0.00021917,2]
[332496909,1721274672751,-503.20137812,0.00021917,2]
[332496910,1721274672760,-500.0,0.00021917,2]
[332496911,1721274672770,-500.0,0.00021917,2]
[332496912,1721274672779,-500.0,0.00021917,2]
[332496913,1721274672789,-541.0,0.00021917,2]
[332496914,1721274672798,-500.0,0.00021917,2]
[332496915,1721274672809,-529.06159343,0.00021917,2]
[332496916,1721274672819,-865.02,0.00021917,2]
[332496917,1721274672828,-878.35,0.00021917,2]
[332496918,1721274672838,-500.0,0.00021917,2]
[332496919,1721274672847,-500.0,0.00021917,2]
[332496920,1721274672857,-504.2202677,0.00021917,2]
[332496921,1721274672867,-500.0,0.00021917,2]
[332496922,1721274672877,-502.49745314,0.00021917,2]
[332496923,1721274672888,-1038.4,0.00021917,2]
[332496924,1721274672898,-516.45490632,0.00021917,2]
[332496925,1721274672908,-500.0,0.00021917,2]
[332496926,1721274672917,-500.0,0.00021917,2]
[332496927,1721274672927,-611.38,0.00021917,2]
[332496928,1721274672937,-508.0135334,0.00021917,2]
[332496929,1721274672947,-635.2236101,0.00021917,2]
[332496930,1721274672956,-500.0,0.00021917,2]
[332496931,1721274672966,-500.0,0.00021917,2]
[332496932,1721274672976,-500.0,0.00021917,2]
[332496933,1721274672985,-503.5826763,0.00021917,2]
[332496934,1721274672994,-954.55,0.00021917,2]
[332496935,1721274673004,-1063.23,0.00021917,2]
[332496936,1721274673014,-500.0,0.00021917,2]
[332496937,1721274673024,-500.0,0.00021917,2]
[332496938,1721274673033,-1261.28,0.00021917,2]
[332496939,1721274673042,-500.0,0.00021917,2]
[332496940,1721274673052,-500.0,0.00021917,2]
[332496941,1721274673062,-500.0,0.00021917,2]
[332496942,1721274673071,-565.73961175,0.00021917,2]
[332496943,1721274673081,-503.81488552,0.00021917,2]
[332496944,1721274673090,-500.0,0.00021917,2]
[332496945,1721274673100,-516.77848349,0.00021917,2]
[332496946,1721274673109,-500.0,0.00021917,2]
[332496947,1721274673119,-500.0,0.00021917,2]
[332496948,1721274673128,-500.0,0.00021917,2]
[332496949,1721274673138,-500.0,0.00021917,2]
[332496950,1721274673147,-372.21900472,0.00021917,2]
[332496951,1721274673156,-1675.63,0.00021917,2]
[332496952,1721274673166,-504.20447933,0.00021917,2]
[332496953,1721274673176,-500.0,0.00021917,2]
[332496954,1721274673185,-1279.88,0.00021917,2]
[332496955,1721274673195,-896.31,0.00021917,2]
[332496956,1721274673204,-501.35055714,0.00021917,2]
[332496957,1721274673213,-500.0,0.00021917,2]
[332496958,1721274673222,-732.38,0.00021917,2]
[332496959,1721274673232,-517.76016529,0.00021917,2]
[332496960,1721274673242,-500.0,0.00021917,2]
[332496961,1721274673252,-509.63100754,0.00021917,2]
[332496962,1721274673261,-609.83,0.00021917,2]
[332496963,1721274673271,-500.0,0.00021917,2]
[332496964,1721274673281,-500.0,0.00021917,2]
[332496965,1721274673291,-502.61730025,0.00021917,2]
[332496966,1721274673300,-830.45,0.00021917,2]
[332496967,1721274673310,-500.0,0.00021917,2]
[332496968,1721274673320,-743.08,0.00021917,2]
[332496969,1721274673329,-589.15,0.00021917,2]
[332496970,1721274673339,-386.54265315,0.00021917,2]
[332496971,1721274673348,-502.27183005,0.00021917,2]
[332496972,1721274673358,-618.16,0.00021917,2]
[332496973,1721274673367,-500.0,0.00021917,2]
[332496974,1721274673377,-500.0,0.00021917,2]
[332496975,1721274673388,-506.80005346,0.00021917,2]
[332496976,1721274673398,-502.87305417,0.00021917,2]
[332496977,1721274673408,-500.0,0.00021917,2]
[332496978,1721274673421,-500.0,0.00021917,2]
[332496979,1721274673431,-500.0,0.00021917,2]
[332496980,1721274673440,-1145.0,0.00021917,2]
[332496981,1721274673450,-532.48752569,0.00021917,2]
[332496982,1721274673460,-491.73491225,0.00021917,2]
[332496983,1721274673469,-508.80464926,0.00021917,2]
[332496984,1721274673478,-500.0,0.00021917,2]
[332496985,1721274673489,-514.9,0.00021917,2]
[332496986,1721274673498,-500.0,0.00021917,2]
[332496987,1721274673508,-515.44188144,0.00021917,2]
[332496988,1721274673518,-504.71508824,0.00021917,2]
[332496989,1721274673529,-506.61518413,0.00021917,2]
[332496990,1721274673539,-781.96,0.00021917,2]
[332496991,1721274673548,-500.0,0.00021917,2]
[332496992,1721274673558,-500.0,0.00021917,2]
[332496993,1721274673568,-500.0,0.00021917,2]
[332496994,1721274673577,-500.0,0.00021917,2]
[332496995,1721274673587,-708.04,0.00021917,2]
[332496996,1721274673597,-500.0,0.00021917,2]
[332496997,1721274673607,-507.74618777,0.00021917,2]
[332496998,1721274673616,-506.91969911,0.00021917,2]
[332496999,1721274673626,-500.0,0.00021917,2]
[332497000,1721274673635,-500.0,0.00021917,2]
[332497001,1721274673647,-501.6,0.00021917,2]
[332497002,1721274673659,-570.52,0.00021917,2]
[332497003,1721274673669,-1501.64,0.00021917,2]
[332497004,1721274673679,-500.0,0.00021917,2]
[332497005,1721274673688,-500.0,0.00021917,2]
[332497006,1721274673699,-500.0,0.00021917,2]
[332497007,1721274673708,-512.84851226,0.00021917,2]
[332497008,1721274673718,-500.0,0.00021917,2]
[332497009,1721274673729,-514.47769302,0.00021917,2]
[332497010,1721274673738,-500.0,0.00021917,2]
[332497011,1721274673749,-500.0,0.00021917,2]
[332497012,1721274673758,-524.03,0.00021917,2]
[332497013,1721274673768,-512.52551211,0.00021917,2]
[332497014,1721274673778,-1926.13,0.00021917,2]
[332497015,1721274673788,-500.0,0.00021917,2]
[332497016,1721274673797,-500.0,0.00021917,2]
[332497017,1721274673806,-500.0,0.00021917,2]
[332497018,1721274673816,-527.1704265,0.00021917,2]
[332497019,1721274673825,-746.32,0.00021917,2]
[332497020,1721274673834,-500.0,0.00021917,2]
[332497021,1721274673844,-500.0,0.00021917,2]
[332497022,1721274673853,-500.0,0.00021917,2]
[332497023,1721274673862,-500.0,0.00021917,2]
[332497024,1721274673871,-507.82768632,0.00021917,2]
[332497025,1721274673881,-500.0,0.00021917,2]
[332497026,1721274673892,-500.0,0.00021917,2]
[332497027,1721274673901,-500.0,0.00021917,2]
[332497028,1721274673911,-500.0,0.00021917,2]
[332497029,1721274673920,-500.0,0.00021917,2]
[332497030,1721274673930,-500.0,0.00021917,2]
[332497031,1721274673940,-500.0,0.00021917,2]
[332497032,1721274673950,-609.02,0.00021917,2]
[332497033,1721274673960,-500.0,0.00021917,2]
[332497034,1721274673970,-821.54,0.00021917,2]
[332497035,1721274673980,-500.0,0.00021917,2]
[332497036,1721274673993,-517.00046911,0.00021917,2]
[332497037,1721274674003,-500.0,0.00021917,2]
[332497038,1721274674013,-512.73436807,0.00021917,2]
[332497039,1721274674023,-378.48981068,0.00021917,2]
[332497040,1721274674033,-634.76,0.00021917,2]
[332497041,1721274674042,-500.0,0.00021917,2]
[332497042,1721274674052,-500.0,0.00021917,2]
[332497043,1721274674062,-500.0,0.00021917,2]
[332497044,1721274674071,-651.93,0.00021917,2]
[332497045,1721274674081,-500.0,0.00021917,2]
[332497046,1721274674091,-637.38,0.00021917,2]
[332497047,1721274674101,-500.0,0.00021917,2]
[332497048,1721274674112,-1865.18,0.00021917,2]
[332497049,1721274674123,-500.0,0.00021917,2]
[332497050,1721274674132,-505.68008796,0.00021917,2]
[332497051,1721274674142,-500.0,0.00021917,2]
[332497052,1721274674152,-1491.18,0.00021917,2]
[332497053,1721274674162,-500.0,0.00021917,2]
[332497054,1721274674172,-1179.32,0.00021917,2]
[332497055,1721274674182,-500.0,0.00021917,2]
[332497056,1721274674191,-590.16,0.00021917,2]
[332497057,1721274674202,-500.0,0.00021917,2]
[332497058,1721274674211,-500.0,0.00021917,2]
[332497059,1721274674222,-1506.39,0.00021917,2]
[332497060,1721274674232,-500.0,0.00021917,2]
[332497061,1721274674243,-500.0,0.00021917,2]
[332497062,1721274674252,-500.0,0.00021917,2]
[332497063,1721274674262,-500.0,0.00021917,2]
[332497064,1721274674272,-230.82124816,0.00021917,2]
[332497065,1721274674282,-500.0,0.00021917,2]
[332497066,1721274674291,-504.21418981,0.00021917,2]
[332497067,1721274674301,-500.0,0.00021917,2]
[332497068,1721274674310,-500.0,0.00021917,2]
[332497069,1721274674320,-500.0,0.00021917,2]
[332497070,1721274674329,-500.0,0.00021917,2]
[332497071,1721274674339,-500.0,0.00021917,2]
[332497072,1721274674348,-500.0,0.00021917,2]
[332497073,1721274674358,-6137.72,0.00021917,2]
[332497074,1721274674367,-500.0,0.00021917,2]
[332497075,1721274674377,-500.0,0.00021917,2]
[332497076,1721274674387,-490.86602812,0.00021917,2]
[332497077,1721274674397,-500.0,0.00021917,2]
[332497078,1721274674581,-500.0,0.00021917,2]
[332497079,1721274674604,-500.0,0.00021917,2]
[332497080,1721274674615,-1230.23,0.00021917,2]
[332497081,1721274674625,-569.69,0.00021917,2]
[332497082,1721274674636,-500.0,0.00021917,2]
[332497083,1721274674646,-500.0,0.00021917,2]
[332497084,1721274674665,-500.0,0.00021917,2]
[332497085,1721274674674,-500.0,0.00021917,2]
[332497086,1721274674684,-504.74621092,0.00021917,2]
[332497087,1721274674694,-504.23594846,0.00021917,2]
[332497088,1721274674706,-500.0,0.00021917,2]
[332497089,1721274674715,-511.51898682,0.00021917,2]
[332497090,1721274674725,-500.0,0.00021917,2]
[332497091,1721274674734,-500.0,0.00021917,2]
[332497092,1721274674745,-377.25648999,0.00021917,2]
[332497093,1721274674755,-506.74496601,0.00021917,2]
[332497094,1721274674765,-871.64,0.00021917,2]
[332497095,1721274674774,-500.0,0.00021917,2]
[332497096,1721274674784,-500.0,0.00021917,2]
[332497097,1721274674793,-579.24233868,0.00021917,2]